{"text_format":"1","workbook":"xlsx","n_sheets":3,"sheets":["入力シート","お客様用","国際業務室用"],"not_rendered":{"charts":0,"images":1,"macros":1,"external_links":0,"defined_names":3,"comments":0,"pivot_tables":0},"unopened":[],"bounds":{"document_bytes":16777216,"sheet_cells":100000,"rows_first":2000,"rows_last":500,"rows_between":2000,"halvings":0,"cell_chars":16384,"cell_head_chars":4096},"cells_cut":0,"cells_raw":0,"read":"whole","date_system":"1900"}

{"sheet":"入力シート","index":0,"n_rows":93,"n_cols":10,"rows_kept":93,"cut":false,"hidden":false,"merged":[[86,3,86,8],[87,3,87,7],[79,3,79,8],[80,3,80,7],[81,3,81,8],[82,3,82,7],[85,3,85,8],[73,3,73,7],[75,3,75,7],[77,3,77,7],[66,3,66,8],[67,3,67,8],[68,3,68,7],[69,3,69,8],[71,3,71,7],[65,3,65,8],[57,4,57,8],[54,2,54,3],[55,2,55,3],[56,2,56,3],[57,2,57,3],[59,3,59,7],[58,3,58,8],[60,3,60,8],[61,3,61,8],[62,3,62,7],[63,3,63,8],[64,3,64,7],[52,3,52,8],[54,4,54,8],[53,3,53,7],[55,4,55,8],[56,4,56,8],[48,5,48,7],[43,6,43,7],[49,6,49,7],[3,3,4,4],[0,3,2,8],[42,5,42,7],[45,2,45,3],[45,6,45,7],[46,2,46,3],[46,6,46,7],[47,2,47,3],[47,6,47,7],[38,2,39,2],[38,3,39,3],[38,4,39,4],[38,5,39,5],[9,2,10,3],[5,2,5,4],[3,6,4,6],[38,6,39,6],[38,7,39,7],[35,2,36,2],[35,3,36,3],[35,4,36,4],[35,5,36,5],[35,6,36,6],[35,7,36,7],[92,2,92,7],[31,2,31,4],[32,2,32,4],[33,3,33,6],[3,5,4,5],[23,2,23,7],[24,2,24,7],[25,2,25,7],[26,2,26,7],[28,2,28,4],[15,2,15,4],[27,2,27,4],[30,2,30,4],[22,2,22,4],[29,2,29,7],[12,2,12,4],[90,3,90,8],[88,3,88,8],[89,3,89,8],[88,1,90,1],[0,0,2,2],[13,3,13,6],[3,7,4,8],[21,2,21,4],[8,2,8,7],[11,2,11,7],[14,2,14,7],[16,2,16,7],[17,2,17,7],[18,2,18,7],[19,2,19,7],[20,2,20,7]]}
["信用状なし輸出為替買取・取立依頼書作成入力画面",null,null,"※印刷設定は両面印刷にしてください。\n※印刷後、お客様控の裏面の規定を必ずご確認ください。\n※文字数が多い場合、印刷後、全ての文字が表示されているか、必ずご確認ください。"]
[]
[]
[null,null,null,"お取引店(店番＆店名)",null,null,"＆"]
[]
[null,"DATE（依頼日）"]
[null,"依頼種別",null,"買取",null,"取立"]
[null,"TENOR（手形条件）",null,"D/P",null,"D/A"]
[]
[null,null,"AT SIGHT ・  　　　  DAYS",null,"after","SIGHT"]
[null,null,null,null,"from","B/L DATE"]
[null,"APPLICANT（依頼人）"]
[null,"DRAFT NO. (手形番号)"]
[null,"DRAFT AMOUNT（手形金額）"]
[null,"DRAWER（輸出者）"]
[null,"（委任状）※APPLICANTと異なる場合"]
[null,"DRAWEE（輸入者）"]
[null,"DRAWEE’Ｓ ADDRESS（住所）"]
[null,"（輸入者国名）"]
[null,"COMMODITY（商品名）"]
[null,"（商品原産地）"]
[null,"IMPORT LICENSE NO."]
[null,"DATE OF SHIPMENT（船積日）"]
[null,"VESSEL（船名）"]
[null,"SHIPPED FROM（船積地）"]
[null,"SHIPPED TO（陸揚地）"]
[null,"最終目的地"]
[null,"TRADE TERM"]
[null,"INS.POLICY NO."]
[null,"ISSUED BY（保険会社名）"]
[null,"輸出手形保険",null,null,null,"←付保する場合は輸出契約書、およびインボイスの写しを添付願います"]
[null,"DATE OF CONTRACT（契約締結日）"]
[null,"CONTRACT NO."]
[null,"CONTRACT AMOUNT"]
[]
[null,"DOCUMENTS　ATTACHED","DRAFT","Comm.Inv.","Cons./\nCust.Inv.","B/L/\nair way","Insurance \nPol./Cert.","Pkg.List"]
[null,"（添付書類）"]
[]
[null,null,"Cert Origin","W/M","INSP.Cert.","Cert."]
[]
[]
[]
[null,"代り金支払方法",null,"SPOT","金額　"]
[null,null,null,null,"A/C NO."]
[null,null,null,"CONT"]
[null,null,"CONT NO, 856-",null,null,"金額　"]
[null,null,"CONT NO. 856-",null,null,"金額　"]
[null,null,"CONT NO. 856-",null,null,"金額　"]
[null,null,null,"NON-EX.","金額　"]
[null,null,null,null,"A/C NO.","外貨預金"]
[]
[]
[null,"指示事項","○","(×)COLLECT THIS DRAFTS THROUGH ",null,null,null,null,null,{"$f":"D53&D54","v":"(×)COLLECT THIS DRAFTS THROUGH "}]
[]
[null,"輸出書類送付先詳細情報","送付先名称（銀行名・支店名）"]
[null,null,"送付先の担当部署名（担当者）"]
[null,null,"送付先住所　ZIPCODE"]
[null,null,"送付先電話番号"]
[null,null,"○","(×)ADVICE OF PAYMENT BY ",null,null,null,null,null,{"$f":"D59&D60","v":"(×)ADVICE OF PAYMENT BY "}]
[]
[null,null,"○","(×)IN CASE OF NON-PAYMENT/NON-ACCEPTANCE,NOTIFY US BY CABLE GIVING REASON AND RETAIN UNTIL FURTHER NOTICE. GOODS TO BE WAREHOUSED AND COVERED BY INSURANCE AT OUR EXPENSE.",null,null,null,null,null,{"$f":"D61","v":"(×)IN CASE OF NON-PAYMENT/NON-ACCEPTANCE,NOTIFY US BY CABLE GIVING REASON AND RETAIN UNTIL FURTHER NOTICE. GOODS TO BE WAREHOUSED AND COVERED BY INSURANCE AT OUR EXPENSE."}]
[null,null,null,"(×)REMIT THE PROCEEDS BY ",null,null,null,null,null,{"$f":"D62&D63","v":"(×)REMIT THE PROCEEDS BY "}]
[]
[null,null,null,"(×)ADVICE OF ACCEPTANCE AND MATURITY BY ",null,null,null,null,null,{"$f":"D64&D65","v":"(×)ADVICE OF ACCEPTANCE AND MATURITY BY "}]
[]
[null,null,null,"(×)PROTEST FOR NON-PAYMENT AND OR NON-ACCEPTANCE.",null,null,null,null,null,{"$f":"D66","v":"(×)PROTEST FOR NON-PAYMENT AND OR NON-ACCEPTANCE."}]
[null,null,null,"(×)PROTEST WAIVED.",null,null,null,null,null,{"$f":"D67","v":"(×)PROTEST WAIVED."}]
[null,null,null,"(×)ALL BANKING CHARGES OUTSIDE JAPAN ARE FOR ACCOUNT OF",null,null,null,null,null,{"$f":"D68&D69","v":"(×)ALL BANKING CHARGES OUTSIDE JAPAN ARE FOR ACCOUNT OF"}]
[]
[null,null,null,"(×)COLLECT INTEREST FROM DRAWEE AT ",null,null,null,null,null,{"$f":"D70&D71&E71&D72&D73&D74&D75","v":"(×)COLLECT INTEREST FROM DRAWEE AT % P.A.  FROM THE DATE OF  TO THE DAT E OF PAYMENT."}]
[null,null,null,null,"% P.A. "]
[]
[null,null,null," FROM THE DATE OF "]
[]
[null,null,null," TO THE DAT E OF PAYMENT."]
[null,null,null,null,null,null,null,null,null,{"$f":"D76&D77","v":" MAY BE WAIVED."}]
[null,null,null," MAY BE WAIVED."]
[null,null,null,null,null,null,null,null,null,{"$f":"D78&D79","v":" MAY NOT BE WAIVED."}]
[null,null,null," MAY NOT BE WAIVED."]
[null,null,null,"(×)IN CASE OF NEED,REFER TO THE FOLLOWING OUR AGENT/ REPRESENTATIVE: ",null,null,null,null,null,{"$f":"D80&D81","v":"(×)IN CASE OF NEED,REFER TO THE FOLLOWING OUR AGENT/ REPRESENTATIVE: "}]
[]
[null,null,null,"(×)UPON COLLECTION OF THIS DRAFT,PAY TO THE ABOVE AGENT THE AMOUNT OF ",null,null,null,null,null,{"$f":"D82&D83&D84&D85&E85","v":"(×)UPON COLLECTION OF THIS DRAFT,PAY TO THE ABOVE AGENT THE AMOUNT OF  AS ％ AGENT COMMISSION OUT OF THE PROCEED."}]
[]
[null,null,null," AS "]
[null,null,null,null,"％ AGENT COMMISSION OUT OF THE PROCEED."]
[null,null,null,"(×)PAYMENT / ACCEPTANCE TO BE DEFERRED UNTIL ARRIVAL OF THE GOODS AT DESTINATION.",null,null,null,null,null,{"$f":"D86","v":"(×)PAYMENT / ACCEPTANCE TO BE DEFERRED UNTIL ARRIVAL OF THE GOODS AT DESTINATION."}]
[null,null,null,"(×)OTHER INSTRUCTIONS.",null,null,null,null,null,"(×)OTHER INSTRUCTIONS."]
[null,null,null,null,null,null,null,null,null,0]
[null,"右記内容をご確認いただき、問題がなければそれぞれ○を選択して下さい。",null,"「外国為替及び外国貿易法」の北朝鮮・イラン関連規制および「米国OFAC規制」に該当しません。",null,null,null,null,null,"「外国為替及び外国貿易法」の北朝鮮・イラン関連規制および「米国OFAC規制」に該当しません。"]
[null,null,null,"取引関係者およびその実質的支配者は北朝鮮に住所等を有する者等ではありません。",null,null,null,null,null,"取引関係者およびその実質的支配者は北朝鮮に住所等を有する者等ではありません。"]
[null,null,null,"取引関係者の中に国連等の経済制裁対象国の住所若しくは居住を有する自然人若しくは主たる事務所を有する法人、その他の団体（当該法人その他の団体の外国にある支店、出張所その他事務所を含む）、またはこれらのものにより実質的に支配されている法人、その他の団体が存在しないことを確認しました。",null,null,null,null,null,"取引関係者の中に国連等の経済制裁対象国の住所若しくは居住を有する自然人若しくは主たる事務所を有する法人、その他の団体（当該法人その他の団体の外国にある支店、出張所その他事務所を含む）、またはこれらのものにより実質的に支配されている法人、その他の団体が存在しないことを確認しました。"]
[]
[null,"銀行へのご連絡欄"]

{"sheet":"お客様用","index":1,"n_rows":122,"n_cols":15,"rows_kept":122,"cut":false,"hidden":false,"merged":[[9,1,9,6],[9,9,9,14],[0,13,0,14],[1,9,1,10],[1,11,1,12],[1,13,1,14],[2,9,2,10],[2,11,2,12],[2,13,2,14],[3,9,3,11],[3,12,3,14],[5,1,5,6],[5,8,7,14],[8,1,8,6],[10,1,10,6],[10,9,10,14],[11,2,11,6],[11,9,11,14],[12,1,12,6],[12,10,12,14],[13,1,13,6],[14,1,14,6],[14,9,15,9],[14,10,15,10],[14,11,15,11],[14,13,15,13],[14,14,15,14],[15,1,15,6],[16,1,16,6],[17,1,17,6],[17,9,18,9],[17,10,18,10],[17,11,18,11],[17,12,18,12],[17,13,18,13],[14,12,15,12],[17,14,18,14],[18,1,18,6],[21,12,21,14],[30,0,30,6],[22,1,22,6],[22,13,22,14],[23,1,23,6],[24,1,24,6],[24,13,24,14],[25,1,25,6],[25,13,25,14],[26,1,26,6],[26,13,26,14],[27,1,27,6],[27,12,27,14],[32,1,32,6],[33,1,33,6],[19,1,19,6],[20,1,20,6],[21,1,21,6],[63,0,63,14],[56,13,56,14],[28,13,28,14],[45,0,45,14],[34,1,34,6],[35,1,35,6],[36,0,36,14],[37,0,37,14],[38,0,38,14],[39,0,39,14],[40,0,40,14],[41,0,41,14],[42,0,42,14],[43,0,43,14],[44,0,44,14],[33,8,35,14],[51,1,51,14],[62,13,62,14],[54,0,55,0],[46,0,46,14],[47,0,47,14],[48,0,48,14],[49,0,49,14],[50,0,50,14],[52,1,52,14],[53,1,53,14],[54,1,55,14]]}
["APPLICATION FOR EXPORT BILL (WITHOUT LETTER OF CREDIT)",null,null,null,null,null,null,null,null,null,null,null,null,"お客様用（表面）"]
["信用状なし輸出為替買取／取立依頼書"]
["ＴＯ ＴＨＥ ＳＥＮＳＨＵ ＩＫＥＤＡ　ＢＡＮＫ, ＬＴＤ．"]
["I/WE REQUEST YOU TO NEGOTIATE/COLLECT OUR DOCUMENTARY BILLS AS DETAILED BELOW."]
["私（当社）は裏面のに記載の規定を承認のうえ、本取引を下記のとおり申し込みます。なお、本件提出後、弊行が承諾する事により契約が成立するものとします。"]
["DATE（依頼日）",{"$f":"入力シート!C6","v":"00:00:00"},null,null,null,null,null,null,"THE PRESENT COLLECTION IS SUBJECT TO UNIFORM RULES FOR COLLECTION (1995 REVISION), PUBLICATION NO.552 OR ANY SUBSEQUENT REVISIONS AS ESTABLISHED BY INTERNATIONAL CHAMBER OF COMMERCE."]
["依頼種別",{"$f":"入力シート!C7","v":0},"買取",{"$f":"入力シート!E7","v":0},"取立"]
["TENOR（手形条件）",{"$f":"入力シート!C8","v":0},"D/P",{"$f":"入力シート!E8","v":0},"D/A"]
[null,{"$f":"入力シート!C9","v":0}]
["APPLICANT（依頼人）",{"$f":"入力シート!C12","v":0},null,null,null,null,null,null,"輸出手形保険",{"$f":"入力シート!C31","v":0}]
["DRAFT NO. (手形番号)",{"$f":"入力シート!C13","v":0},null,null,null,null,null,null,"DATE OF CONTRACT（契約締結日）",{"$f":"入力シート!C32","v":"00:00:00"}]
["DRAFT AMOUNT（手形金額）",{"$f":"入力シート!C14","v":0},{"$f":"入力シート!D14","v":0},null,null,null,null,null,"CONTRACT NO.",{"$f":"入力シート!C33","v":0}]
["DRAWER（輸出者）",{"$f":"入力シート!C15","v":0},null,null,null,null,null,null,"CONTRACT AMOUNT",{"$f":"入力シート!C34","v":0},{"$f":"入力シート!D34","v":0}]
["（委任状）",{"$f":"入力シート!C16","v":0}]
["DRAWEE（輸入者）",{"$f":"入力シート!C17","v":0},null,null,null,null,null,null,"DOCUMENTS　ATTACHED","DRAFT","Comm.Inv.","Cons./\nCust.Inv.","B/L/\nair way","Insurance \nPol./Cert.","Pkg.List"]
["DRAWEE’Ｓ ADDRESS（住所）",{"$f":"入力シート!C18","v":0},null,null,null,null,null,null,"（添付書類）"]
["（輸入者国名）",{"$f":"入力シート!C19","v":0},null,null,null,null,null,null,null,{"$f":"入力シート!C38","v":0},{"$f":"入力シート!D38","v":0},{"$f":"入力シート!E38","v":0},{"$f":"入力シート!F38","v":0},{"$f":"入力シート!G38","v":0},{"$f":"入力シート!H38","v":0}]
["COMMODITY（商品名）",{"$f":"入力シート!C20","v":0},null,null,null,null,null,null,null,"Cert Origin","W/M","INSP.Cert.","Cert.",{"$f":"入力シート!G39","v":0},{"$f":"入力シート!H39","v":0}]
["（商品原産地）",{"$f":"入力シート!C21","v":0}]
["IMPORT LICENSE NO.",{"$f":"入力シート!C22","v":0},null,null,null,null,null,null,null,{"$f":"入力シート!C41","v":0},{"$f":"入力シート!D41","v":0},{"$f":"入力シート!E41","v":0},{"$f":"入力シート!F41","v":0},{"$f":"入力シート!G41","v":0},{"$f":"入力シート!H41","v":0}]
["DATE OF SHIPMENT（船積日）",{"$f":"入力シート!C23","v":"00:00:00"}]
["VESSEL（船名）",{"$f":"入力シート!C24","v":0},null,null,null,null,null,null,"代り金支払方法",{"$f":"入力シート!C43","v":0},"SPOT","金額",{"$f":"入力シート!F43","v":0}]
["SHIPPED FROM（船積地）",{"$f":"入力シート!C25","v":0},null,null,null,null,null,null,null,null,null,"A/C NO.",{"$f":"入力シート!F44","v":0},{"$f":"入力シート!G44","v":0}]
["SHIPPED TO（陸揚地）",{"$f":"入力シート!C26","v":0},null,null,null,null,null,null,null,{"$f":"入力シート!C45","v":0},"CONT"]
["最終目的地",{"$f":"入力シート!C27","v":0},null,null,null,null,null,null,null,null,"CONT NO, 856-",{"$f":"入力シート!E46","v":0},"金額　",{"$f":"入力シート!G46","v":0}]
["TRADE TERM",{"$f":"入力シート!C28","v":0},null,null,null,null,null,null,null,null,"CONT NO. 856-",{"$f":"入力シート!E47","v":0},"金額　",{"$f":"入力シート!G47","v":0}]
["INS.POLICY NO.",{"$f":"入力シート!C29","v":0},null,null,null,null,null,null,null,null,"CONT NO. 856-",{"$f":"入力シート!E48","v":0},"金額　",{"$f":"入力シート!G48","v":0}]
["ISSUED BY（保険会社名）",{"$f":"入力シート!C30","v":0},null,null,null,null,null,null,null,{"$f":"入力シート!C49","v":0},"NON-EX.","金額",{"$f":"入力シート!F49","v":0}]
[null,null,null,null,null,null,null,null,null,null,null,"A/C NO.","外貨預金",{"$f":"入力シート!G50","v":0}]
["指示事項"]
[{"$f":"IF(入力シート!C53=\"○\",入力シート!J53,\"ー\")","v":"(×)COLLECT THIS DRAFTS THROUGH "}]
["輸出書類送付先詳細情報"]
["送付先名称（銀行名・支店名）",{"$f":"入力シート!E55","v":0}]
["送付先の担当部署名（担当者）",{"$f":"入力シート!E56","v":0},null,null,null,null,null,null,"IN CONSIDERATION OF YOUR NEGOTIATING/COLLECTING THE ABOVE-MENTIONED DOCUMENTARY BILL(S), I/WE HEREBY AGREE AND UNDERTAKE TO HOLD MYSEL F/OURSELVES LIABLE TO YOU AS PER PROVISIONS SET FORTH IN THE GENERAL LETTER OF HYPOTHECATION SIGNED BY ME/US AN D SEPARATELY SUBMITTED TO YOU AND ON THE REVERSE HEREOF."]
["送付先住所 ZIPCODE",{"$f":"入力シート!E57","v":0}]
["送付先電話番号",{"$f":"入力シート!E58","v":0}]
[{"$f":"IF(入力シート!C59=\"○\",入力シート!J59,\"―\")","v":"(×)ADVICE OF PAYMENT BY "}]
[{"$f":"IF(入力シート!C61=\"○\",入力シート!J61,\"―\")","v":"(×)IN CASE OF NON-PAYMENT/NON-ACCEPTANCE,NOTIFY US BY CABLE GIVING REASON AND RETAIN UNTIL FURTHER NOTICE. GOODS TO BE WAREHOUSED AND COVERED BY INSURANCE AT OUR EXPENSE."}]
[{"$f":"IF(入力シート!C62=\"○\",入力シート!J62,\"―\")","v":"―"}]
[{"$f":"IF(入力シート!C64=\"○\",入力シート!J64,\"―\")","v":"―"}]
[{"$f":"IF(入力シート!C66=\"○\",入力シート!J66,\"―\")","v":"―"}]
[{"$f":"IF(入力シート!C67=\"○\",入力シート!J67,\"―\")","v":"―"}]
[{"$f":"IF(入力シート!C68=\"○\",入力シート!J68,\"―\")","v":"―"}]
[{"$f":"IF(入力シート!C70=\"○\",入力シート!J70,\"―\")","v":"―"}]
[{"$f":"IF(入力シート!C76=\"○\",入力シート!J76,\"―\")","v":"―"}]
[{"$f":"IF(入力シート!C78=\"○\",入力シート!J78,\"―\")","v":"―"}]
[{"$f":"IF(入力シート!C80=\"○\",入力シート!J80,\"―\")","v":"―"}]
[{"$f":"IF(入力シート!C82=\"○\",入力シート!J82,\"―\")","v":"―"}]
[{"$f":"IF(入力シート!C86=\"○\",入力シート!J86,\"―\")","v":"―"}]
[{"$f":"IF(入力シート!C87=\"○\",入力シート!J87,\"―\")","v":"―"}]
[{"$f":"IF(入力シート!C87=\"○\",入力シート!J88,\"\")","v":""}]
["銀行へのご連絡欄",{"$f":"入力シート!C93","v":0}]
[{"$f":"IF(入力シート!C89=\"○\",\"✔\",\"\")","v":""},"「外国為替及び外国貿易法」の北朝鮮・イラン関連規制および「米国OFAC規制」に該当しません。"]
[{"$f":"IF(入力シート!C90=\"○\",\"✔\",\"\")","v":""},"取引関係者およびその実質的支配者は北朝鮮に住所等を有する者等ではありません。"]
[{"$f":"IF(入力シート!C91=\"○\",\"✔\",\"\")","v":""},"取引関係者の中に国連等の経済制裁対象国の住所若しくは居住を有する自然人若しくは主たる事務所を有する法人、その他の団体（当該法人その他の団体の外国にある支店、出張所その他事務所を含む）、またはこれらのものにより実質的に支配されている法人、その他の団体が存在しないことを確認しました。"]
[]
[null,null,null,null,null,null,null,null,null,null,"店番",{"$f":"入力シート!F4","v":0},"店名",{"$f":"入力シート!H4","v":0}]
[]
[]
[]
[]
[]
[null,null,null,null,null,null,null,null,null,null,null,null,null,"お客様用（裏面）"]
["輸出為替取立規定　(WITHOUT L/C)"]
[null,"1.　(取立銀行の選定、輸出為替の輸送方法等)"]
[null,"輸出貨物代金その他外国から受け取るべき金銭の支払を受けるための為替手形、約束手形、小切手、受領書またはこ"]
[null,"れらと同様の書類（以下「輸出為替」という｡）の取立のために利用する当行の本支店および他行（以下「取立銀行｣"]
[null,"という｡）ならびに輸出為替および付属書類の輸送方法の選定は、輸出為替取立依頼書（以下「取立依頼書」という｡)"]
[null,"または文書により特に指定されている場合を除き、当行に一任されたものとします。"]
[null,"2.　(輸出為替および付属書類の真正等)"]
[null,"取立を依頼された輸出為替および付属書類ならびにこれになされた裏書等が真正かつ有効であることについては、当行"]
[null,"に何ら確認義務はなく、輸出為替および付属書類ならびにこれになされた裏書等に偽造、変造、その他の瑕疵があるこ"]
[null,"とによって生じた損害については、当行は責任を負いません。"]
[null,"3.　(手数料、費用等)"]
[null,"(1) 当行および取立銀行の取立に関する手数料および諸費用は依頼人の負担とし、取立依頼の受付時または後日当行か"]
[null,"ら請求あり次第、直ちにお支払いください。"]
[null,"(2) 依頼に基づくと否とにかかわらず、当行が取立の経過照会を行った場合、または取立銀行からの照会に対して回答"]
[null,"等を行った場合の手数料、諸費用についても、前項と同様とします。"]
[null,"(3) 輸出為替の手形上の権利の保全または付属書類もしくは付帯荷物の保全に関し費用が発生した場合には、当行から"]
[null,"請求あり次第、直ちにお支払いください。"]
[null,"(4) 前３項の手数料、諸費用の料率、計算方法および適用する為替相場については、当行の定めによるものとし、当行"]
[null,"が必要と認めた場合には、取立代金から差し引くことができるものとします。"]
[null,"4.　(付属書類の引渡し)"]
[null,"(1) 輸出為替の付属書類の引渡しは、取立依頼書記載の引渡条件によるものとします。"]
[null,"(2) 手形引受に対して付属書類を引渡す場合には、輸出為替面に”Documents against Acceptance”と表示し、かつ取立"]
[null,"依頼書の所定の欄に”Documents against Acceptance”である旨の表示をしてください。これらの表示がなされてい"]
[null,"ないものは、すべて手形支払に対して付属書類を引渡すものとして取扱います。"]
[null,"(3) 輸出為替の引受地、支払地、荷揚地の法令または慣習上必要と認められた場合には、当行または取立銀行は、依頼"]
[null,"人にその旨の通知をすることなく引渡条件を変更できるものとします。"]
[null,"5.　(拒絶証書の作成)"]
[null,"(1) 輸出為替の取立依頼書に拒絶証書作成（または外国の法制上これに代わる法律上の手続き。以下同じ｡）の明確な指"]
[null,"図がある場合のほかは、当行はすべてその手続きを免除されたものとします。"]
[null,"(2) 輸出為替の取立依頼書に拒絶証書作成の明確な指図があり、当行が取立銀行に同様の指図をしたにもかかわらず､"]
[null,"これが作成されなかった場合には、当行に責任はないものとします。"]
[null,"(3) 依頼の有無にかかわらず、当行または取立銀行が必要と認めたときは、依頼人の費用負担で拒絶証書を作成するこ"]
[null,"とができるものとします。"]
[null,"6.　(付帯荷物の取扱)"]
[null,"輸出為替の支払義務者が輸出為替の支払、引受または債務の確認を拒否した場合でも、当行および取立銀行には付帯"]
[null,"荷物の陸揚げ、通関、倉入れ、付保、転売等荷物の保全の義務はないものとします。"]
[null,"7.　(取立代金の償還)"]
[null,"支払地の法令、規則、慣習その他何らかの事由により、取立銀行からの取立代金の支払が取消された場合、または取"]
[null,"立銀行からいったん支払われた取立代金の返還を請求された場合には、輸出為替の返還を条件としないで、支払済の"]
[null,"取立代金およびこれに付帯する当行所定の料率による利息、手数料、諸費用を当行から請求あり次第、直ちにお支払"]
[null,"いください。この場合に適用される為替相場は、償還時の当行所定の為替相場とします。"]
[null,"8.　(輸出為替および付属書類の返還)"]
[null,"(1) 不渡等の理由により当行が返還する輸出為替および付属書類がある場合には、その輸出為替および付属書類は、当"]
[null,"行の取扱店舗において返還するものとします。"]
[null,"(2) 支払地の法令、規則、慣習その他何らかの事由により、輸出為替および付属書類の取戻しができないと認められる"]
[null,"場合には、当行に輸出為替および付属書類の返還義務はないものとし、このことから生じる損害については、当行"]
[null,"に責任はないものとします。"]
[null,"9.　(免責)"]
[null,"当行は、以下の損害については、責任を負いません。"]
[null,"(1) 輸出為替および付属書類の輸送中の紛失、損傷、延着等の事故によって生じた損害。"]
[null,"(2) 取立銀行の責に帰すべき事由によって生じた損害。"]
[null,"(3) 取立銀行の営業停止、支払不能もしくは破産および支払地の法令その他の事情による取立代金の回収不能、延着､"]
[null,"為替変動、その他やむを得ない事情により生じた損害。"]
[null,"(4) 不可抗力その他当行の責に帰すべき事由以外の事由により生じた損害。"]
[null,"10.　(譲渡、質入れの禁止)"]
[null,"本取立の委託に基づく依頼人の権利は譲渡または質入れすることはできません。"]
[null,"11.　(取立統一規則)"]
[null,"この規定に定めのない事項については、国際商業会議所制定の「取立統一規則」（1995　年規則またはその後の改訂が"]
[null,"あれば改訂規則）に従って取扱うものとします。"]

{"sheet":"国際業務室用","index":2,"n_rows":133,"n_cols":33,"rows_kept":133,"cut":false,"hidden":false,"merged":[[5,8,7,14],[17,9,18,9],[17,10,18,10],[17,11,18,11],[17,12,18,12],[17,13,18,13],[9,9,9,14],[10,9,10,14],[11,9,11,14],[17,14,18,14],[0,13,0,14],[14,9,15,9],[14,10,15,10],[14,11,15,11],[14,12,15,12],[14,13,15,13],[14,14,15,14],[2,9,2,10],[2,11,2,12],[2,13,2,14],[3,12,3,14],[1,9,1,10],[1,11,1,12],[1,13,1,14],[3,9,3,11],[12,10,12,14],[132,15,132,19],[49,0,49,14],[30,0,30,6],[126,15,127,19],[47,0,47,14],[48,0,48,14],[50,0,50,14],[36,0,36,14],[32,1,32,6],[33,1,33,6],[34,1,34,6],[35,1,35,6],[42,0,42,14],[43,0,43,14],[44,0,44,14],[65,0,65,14],[5,1,5,6],[8,1,8,6],[9,1,9,6],[10,1,10,6],[11,2,11,6],[12,1,12,6],[13,1,13,6],[14,1,14,6],[15,1,15,6],[16,1,16,6],[17,1,17,6],[18,1,18,6],[19,1,19,6],[20,1,20,6],[21,1,21,6],[54,0,55,0],[22,1,22,6],[23,1,23,6],[24,1,24,6],[25,1,25,6],[26,1,26,6],[46,0,46,14],[37,0,37,14],[38,0,38,14],[39,0,39,14],[40,0,40,14],[41,0,41,14],[64,13,64,14],[27,12,27,14],[33,8,35,14],[21,12,21,14],[22,13,22,14],[24,13,24,14],[25,13,25,14],[26,13,26,14],[52,1,52,14],[53,1,53,14],[54,1,55,14],[28,13,28,14],[51,1,51,14],[56,13,56,14],[27,1,27,6],[45,0,45,14]]}
["APPLICATION FOR EXPORT BILL (WITHOUT LETTER OF CREDIT)",null,null,null,null,null,null,null,null,null,null,null,null,"国際業務室用(表面)"]
["信用状なし輸出為替買取／取立依頼書",null,null,null,null,null,null,null,null,"営業店発送日",null,"国際業務室発送日",null,"DUE ON(予定期日）"]
["ＴＯ ＴＨＥ ＳＥＮＳＨＵ ＩＫＥＤＡ　ＢＡＮＫ, ＬＴＤ．"]
["I/WE REQUEST YOU TO NEGOTIATE/COLLECT OUR DOCUMENTARY BILLS AS DETAILED BELOW.",null,null,null,null,null,null,null,null,"当行REF.NO."]
["私（当社）は裏面のに記載の規定を承認のうえ、本取引を下記のとおり申し込みます。なお、本件提出後、弊行が承諾する事により契約が成立するものとします。"]
["DATE（依頼日）",{"$f":"入力シート!C6","v":"00:00:00"},null,null,null,null,null,null,"THE PRESENT COLLECTION IS SUBJECT TO UNIFORM RULES FOR COLLECTION (1995 REVISION), PUBLICATION NO.552 OR ANY SUBSEQUENT REVISIONS AS ESTABLISHED BY INTERNATIONAL CHAMBER OF COMMERCE."]
["依頼種別",{"$f":"入力シート!C7","v":0},"買取",{"$f":"入力シート!E7","v":0},"取立"]
["TENOR（手形条件）",{"$f":"入力シート!C8","v":0},"D/P",{"$f":"入力シート!E8","v":0},"D/A"]
[null,{"$f":"入力シート!C9","v":0}]
["APPLICANT（依頼人）",{"$f":"入力シート!C12","v":0},null,null,null,null,null,null,"輸出手形保険",{"$f":"入力シート!C31","v":0}]
["DRAFT NO. (手形番号)",{"$f":"入力シート!C13","v":0},null,null,null,null,null,null,"DATE OF CONTRACT（契約締結日）",{"$f":"入力シート!C32","v":"00:00:00"}]
["DRAFT AMOUNT（手形金額）",{"$f":"入力シート!C14","v":0},{"$f":"入力シート!D14","v":0},null,null,null,null,null,"CONTRACT NO.",{"$f":"入力シート!C33","v":0}]
["DRAWER（輸出者）",{"$f":"入力シート!C15","v":0},null,null,null,null,null,null,"CONTRACT AMOUNT",{"$f":"入力シート!C34","v":0},{"$f":"入力シート!D34","v":0}]
["（委任状）",{"$f":"入力シート!C16","v":0}]
["DRAWEE（輸入者）",{"$f":"入力シート!C17","v":0},null,null,null,null,null,null,"DOCUMENTS　ATTACHED","DRAFT","Comm.Inv.","Cons./\nCust.Inv.","B/L/\nair way","Insurance \nPol./Cert.","Pkg.List"]
["DRAWEE’Ｓ ADDRESS（住所）",{"$f":"入力シート!C18","v":0},null,null,null,null,null,null,"（添付書類）"]
["（輸入者国名）",{"$f":"入力シート!C19","v":0},null,null,null,null,null,null,null,{"$f":"入力シート!C38","v":0},{"$f":"入力シート!D38","v":0},{"$f":"入力シート!E38","v":0},{"$f":"入力シート!F38","v":0},{"$f":"入力シート!G38","v":0},{"$f":"入力シート!H38","v":0}]
["COMMODITY（商品名）",{"$f":"入力シート!C20","v":0},null,null,null,null,null,null,null,"Cert Origin","W/M","INSP.Cert.","Cert.",{"$f":"入力シート!G39","v":0},{"$f":"入力シート!H39","v":0}]
["（商品原産地）",{"$f":"入力シート!C21","v":0}]
["IMPORT LICENSE NO.",{"$f":"入力シート!C22","v":0},null,null,null,null,null,null,null,{"$f":"入力シート!C41","v":0},{"$f":"入力シート!D41","v":0},{"$f":"入力シート!E41","v":0},{"$f":"入力シート!F41","v":0},{"$f":"入力シート!G41","v":0},{"$f":"入力シート!H41","v":0}]
["DATE OF SHIPMENT（船積日）",{"$f":"入力シート!C23","v":"00:00:00"}]
["VESSEL（船名）",{"$f":"入力シート!C24","v":0},null,null,null,null,null,null,"代り金支払方法",{"$f":"入力シート!C43","v":0},"SPOT","金額",{"$f":"入力シート!F43","v":0}]
["SHIPPED FROM（船積地）",{"$f":"入力シート!C25","v":0},null,null,null,null,null,null,null,null,null,"A/C NO.",{"$f":"入力シート!F44","v":0},{"$f":"入力シート!G44","v":0}]
["SHIPPED TO（陸揚地）",{"$f":"入力シート!C26","v":0},null,null,null,null,null,null,null,{"$f":"入力シート!C45","v":0},"CONT"]
["最終目的地",{"$f":"入力シート!C27","v":0},null,null,null,null,null,null,null,null,"CONT NO, 856-",{"$f":"入力シート!E46","v":0},"金額　",{"$f":"入力シート!G46","v":0}]
["TRADE TERM",{"$f":"入力シート!C28","v":0},null,null,null,null,null,null,null,null,"CONT NO. 856-",{"$f":"入力シート!E47","v":0},"金額　",{"$f":"入力シート!G47","v":0}]
["INS.POLICY NO.",{"$f":"入力シート!C29","v":0},null,null,null,null,null,null,null,null,"CONT NO. 856-",{"$f":"入力シート!E48","v":0},"金額　",{"$f":"入力シート!G48","v":0}]
["ISSUED BY（保険会社名）",{"$f":"入力シート!C30","v":0},null,null,null,null,null,null,null,{"$f":"入力シート!C49","v":0},"NON-EX.","金額",{"$f":"入力シート!F49","v":0}]
[null,null,null,null,null,null,null,null,null,null,null,"A/C NO.","外貨預金",{"$f":"入力シート!G50","v":0}]
["指示事項"]
[{"$f":"IF(入力シート!C53=\"○\",入力シート!J53,\"ー\")","v":"(×)COLLECT THIS DRAFTS THROUGH "}]
["輸出書類送付先詳細情報"]
["送付先名称（銀行名・支店名）",{"$f":"入力シート!E55","v":0}]
["送付先の担当部署名（担当者）",{"$f":"入力シート!E56","v":0},null,null,null,null,null,null,"IN CONSIDERATION OF YOUR NEGOTIATING/COLLECTING THE ABOVE-MENTIONED DOCUMENTARY BILL(S), I/WE HEREBY AGREE AND UNDERTAKE TO HOLD MYSEL F/OURSELVES LIABLE TO YOU AS PER PROVISIONS SET FORTH IN THE GENERAL LETTER OF HYPOTHECATION SIGNED BY ME/US AN D SEPARATELY SUBMITTED TO YOU AND ON THE REVERSE HEREOF."]
["送付先住所 ZIPCODE",{"$f":"入力シート!E57","v":0}]
["送付先電話番号",{"$f":"入力シート!E58","v":0}]
[{"$f":"IF(入力シート!C59=\"○\",入力シート!J59,\"―\")","v":"(×)ADVICE OF PAYMENT BY "}]
[{"$f":"IF(入力シート!C61=\"○\",入力シート!J61,\"―\")","v":"(×)IN CASE OF NON-PAYMENT/NON-ACCEPTANCE,NOTIFY US BY CABLE GIVING REASON AND RETAIN UNTIL FURTHER NOTICE. GOODS TO BE WAREHOUSED AND COVERED BY INSURANCE AT OUR EXPENSE."}]
[{"$f":"IF(入力シート!C62=\"○\",入力シート!J62,\"―\")","v":"―"}]
[{"$f":"IF(入力シート!C64=\"○\",入力シート!J64,\"―\")","v":"―"}]
[{"$f":"IF(入力シート!C66=\"○\",入力シート!J66,\"―\")","v":"―"}]
[{"$f":"IF(入力シート!C67=\"○\",入力シート!J67,\"―\")","v":"―"}]
[{"$f":"IF(入力シート!C68=\"○\",入力シート!J68,\"―\")","v":"―"}]
[{"$f":"IF(入力シート!C70=\"○\",入力シート!J70,\"―\")","v":"―"}]
[{"$f":"IF(入力シート!C76=\"○\",入力シート!J76,\"―\")","v":"―"}]
[{"$f":"IF(入力シート!C78=\"○\",入力シート!J78,\"―\")","v":"―"}]
[{"$f":"IF(入力シート!C80=\"○\",入力シート!J80,\"―\")","v":"―"}]
[{"$f":"IF(入力シート!C82=\"○\",入力シート!J82,\"―\")","v":"―"}]
[{"$f":"IF(入力シート!C86=\"○\",入力シート!J86,\"―\")","v":"―"}]
[{"$f":"IF(入力シート!C87=\"○\",入力シート!J87,\"―\")","v":"―"}]
[{"$f":"IF(入力シート!C87=\"○\",入力シート!J88,\"\")","v":""}]
["銀行へのご連絡欄",{"$f":"入力シート!C93","v":0}]
[{"$f":"IF(入力シート!C89=\"○\",\"✔\",\"\")","v":""},"「外国為替及び外国貿易法」の北朝鮮・イラン関連規制および「米国OFAC規制」に該当しません。"]
[{"$f":"IF(入力シート!C90=\"○\",\"✔\",\"\")","v":""},"取引関係者およびその実質的支配者は北朝鮮に住所等を有する者等ではありません。"]
[{"$f":"IF(入力シート!C91=\"○\",\"✔\",\"\")","v":""},"取引関係者の中に国連等の経済制裁対象国の住所若しくは居住を有する自然人若しくは主たる事務所を有する法人、その他の団体（当該法人その他の団体の外国にある支店、出張所その他事務所を含む）、またはこれらのものにより実質的に支配されている法人、その他の団体が存在しないことを確認しました。"]
[]
[null,null,null,null,null,null,null,null,null,null,"店番",{"$f":"入力シート!F4","v":0},"店名",{"$f":"入力シート!H4","v":0}]
[]
[]
[]
[]
[]
[]
[]
[null,null,null,null,null,null,null,null,null,null,null,null,null,"国際業務室用(裏面)"]
["輸出為替取立規定　(WITHOUT L/C)"]
[null,"1.　(取立銀行の選定、輸出為替の輸送方法等)"]
[null,"輸出貨物代金その他外国から受け取るべき金銭の支払を受けるための為替手形、約束手形、小切手、受領書またはこ"]
[null,"れらと同様の書類（以下「輸出為替」という｡）の取立のために利用する当行の本支店および他行（以下「取立銀行｣"]
[null,"という｡）ならびに輸出為替および付属書類の輸送方法の選定は、輸出為替取立依頼書（以下「取立依頼書」という｡)"]
[null,"または文書により特に指定されている場合を除き、当行に一任されたものとします。"]
[null,"2.　(輸出為替および付属書類の真正等)"]
[null,"取立を依頼された輸出為替および付属書類ならびにこれになされた裏書等が真正かつ有効であることについては、当行"]
[null,"に何ら確認義務はなく、輸出為替および付属書類ならびにこれになされた裏書等に偽造、変造、その他の瑕疵があるこ"]
[null,"とによって生じた損害については、当行は責任を負いません。"]
[null,"3.　(手数料、費用等)"]
[null,"(1) 当行および取立銀行の取立に関する手数料および諸費用は依頼人の負担とし、取立依頼の受付時または後日当行か"]
[null,"ら請求あり次第、直ちにお支払いください。"]
[null,"(2) 依頼に基づくと否とにかかわらず、当行が取立の経過照会を行った場合、または取立銀行からの照会に対して回答"]
[null,"等を行った場合の手数料、諸費用についても、前項と同様とします。"]
[null,"(3) 輸出為替の手形上の権利の保全または付属書類もしくは付帯荷物の保全に関し費用が発生した場合には、当行から"]
[null,"請求あり次第、直ちにお支払いください。"]
[null,"(4) 前３項の手数料、諸費用の料率、計算方法および適用する為替相場については、当行の定めによるものとし、当行"]
[null,"が必要と認めた場合には、取立代金から差し引くことができるものとします。"]
[null,"4.　(付属書類の引渡し)"]
[null,"(1) 輸出為替の付属書類の引渡しは、取立依頼書記載の引渡条件によるものとします。"]
[null,"(2) 手形引受に対して付属書類を引渡す場合には、輸出為替面に”Documents against Acceptance”と表示し、かつ取立"]
[null,"依頼書の所定の欄に”Documents against Acceptance”である旨の表示をしてください。これらの表示がなされてい"]
[null,"ないものは、すべて手形支払に対して付属書類を引渡すものとして取扱います。"]
[null,"(3) 輸出為替の引受地、支払地、荷揚地の法令または慣習上必要と認められた場合には、当行または取立銀行は、依頼"]
[null,"人にその旨の通知をすることなく引渡条件を変更できるものとします。"]
[null,"5.　(拒絶証書の作成)"]
[null,"(1) 輸出為替の取立依頼書に拒絶証書作成（または外国の法制上これに代わる法律上の手続き。以下同じ｡）の明確な指"]
[null,"図がある場合のほかは、当行はすべてその手続きを免除されたものとします。"]
[null,"(2) 輸出為替の取立依頼書に拒絶証書作成の明確な指図があり、当行が取立銀行に同様の指図をしたにもかかわらず､"]
[null,"これが作成されなかった場合には、当行に責任はないものとします。"]
[null,"(3) 依頼の有無にかかわらず、当行または取立銀行が必要と認めたときは、依頼人の費用負担で拒絶証書を作成するこ"]
[null,"とができるものとします。"]
[null,"6.　(付帯荷物の取扱)"]
[null,"輸出為替の支払義務者が輸出為替の支払、引受または債務の確認を拒否した場合でも、当行および取立銀行には付帯"]
[null,"荷物の陸揚げ、通関、倉入れ、付保、転売等荷物の保全の義務はないものとします。"]
[null,"7.　(取立代金の償還)"]
[null,"支払地の法令、規則、慣習その他何らかの事由により、取立銀行からの取立代金の支払が取消された場合、または取"]
[null,"立銀行からいったん支払われた取立代金の返還を請求された場合には、輸出為替の返還を条件としないで、支払済の"]
[null,"取立代金およびこれに付帯する当行所定の料率による利息、手数料、諸費用を当行から請求あり次第、直ちにお支払"]
[null,"いください。この場合に適用される為替相場は、償還時の当行所定の為替相場とします。"]
[null,"8.　(輸出為替および付属書類の返還)"]
[null,"(1) 不渡等の理由により当行が返還する輸出為替および付属書類がある場合には、その輸出為替および付属書類は、当"]
[null,"行の取扱店舗において返還するものとします。"]
[null,"(2) 支払地の法令、規則、慣習その他何らかの事由により、輸出為替および付属書類の取戻しができないと認められる"]
[null,"場合には、当行に輸出為替および付属書類の返還義務はないものとし、このことから生じる損害については、当行"]
[null,"に責任はないものとします。"]
[null,"9.　(免責)"]
[null,"当行は、以下の損害については、責任を負いません。"]
[null,"(1) 輸出為替および付属書類の輸送中の紛失、損傷、延着等の事故によって生じた損害。"]
[null,"(2) 取立銀行の責に帰すべき事由によって生じた損害。"]
[null,"(3) 取立銀行の営業停止、支払不能もしくは破産および支払地の法令その他の事情による取立代金の回収不能、延着､"]
[null,"為替変動、その他やむを得ない事情により生じた損害。"]
[null,"(4) 不可抗力その他当行の責に帰すべき事由以外の事由により生じた損害。"]
[null,"10.　(譲渡、質入れの禁止)"]
[null,"本取立の委託に基づく依頼人の権利は譲渡または質入れすることはできません。"]
[null,"11.　(取立統一規則)"]
[null,"この規定に定めのない事項については、国際商業会議所制定の「取立統一規則」（1995　年規則またはその後の改訂が"]
[null,"あれば改訂規則）に従って取扱うものとします。"]
[]
[null,null,null,null,null,null,null,null,null,null,null,null,null,null,null,"国際業務室"]
[null,null,null,null,null,null,null,null,null,null,null,null,null,null,null,"THE SENSHU IKEDA BANK, LTD.",null,null,null,null,"仲介貿易時のみ記入",null,null,null,"APPLICANT"]
[null,null,null,null,null,null,null,null,null,null,null,null,null,null,null,null,null,null,null,null,"支払等報告書",null,"証印"]
[null,null,null,null,null,null,null,null,null,null,null,null,null,null,null,null,null,null,null,null,"□ 要"]
[null,null,null,null,null,null,null,null,null,null,null,null,null,null,null,null,null,null,null,null,"□ 不要",null,null,null,null,null,null,null,null,null,"営業店"]
[null,null,null,null,null,null,null,null,null,null,null,null,null,null,null,null,null,null,null,null,"担当者印","証印","係印",null,null,null,null,null,null,null,"証印","係印","署記名印照合"]
[]
[null,null,null,null,null,null,null,null,null,null,null,null,null,null,null,"(AUTHORIZED SIGNATURE)",null,null,null,null,null,null,null,null,null,null,null,null,null,"（APPLICANT'S　AUTHORIZED　SIGNATURE)"]